[Event "XIII Marques de Pombal 2022"]
[Site "Pombal"]
[Date "2022.10.06"]
[Round "4.7"]
[White "Morais, Vitor Mestre"]
[Black "Paiva, Manuel Maria Fonseca"]
[Result "1/2-1/2"]
[ECO "B54"]
[WhiteElo "1802"]
[BlackElo "1451"]
[Annotator "NA RC COMBH"]
[PlyCount "59"]
[EventDate "2022.09.28"]
[EventType "swiss"]
[EventCountry "POR"]
[SourceTitle "playchess.com"]
[Source "ChessBase"]
[SourceQuality "1"]
[TimeControl "5400+30"]

1. e4 {[%emt 0:00:05]} c5 {[%emt 0:00:11]} 2. Nf3 {[%emt 0:00:10]} d6 {[%emt 0:00:19]} 3. d4 {[%emt 0:00:09]} cxd4 {[%emt 0:00:05]} 4. Nxd4 {[%emt 0:00:10]} Nf6 {[%emt 0:00:04]} 5. Bd3 {[%emt 0:00:15]} e5 {[%emt 0:01:33]} 6. Nf3 {[%emt 0:00:27]} Be7 {[%emt 0:02:33]} 7. O-O {[%emt 0:00:09]} h6 {[%emt 0:00:34]} 8. c4 {[%emt 0:00:12]} O-O {[%emt 0:00:55]} 9. Nc3 {[%emt 0:00:06]} Nbd7 {[%emt 0:01:57]} 10. h3 {[%emt 0:00:07]} Nc5 {[%emt 0:04:50]} 11. Bc2 {[%emt 0:00:11]} a5 {[%emt 0:02:51]} 12. b3 {[%emt 0:00:14]} Bd7 {[%emt 0:04:39]} 13. Be3 {[%emt 0:00:12]} Qc7 $16 {[%emt 0:02:32]} 14. a4 {[%emt 0:00:20]} Rfe8 {[%emt 0:03:01]} 15. Qd2 {[%emt 0:00:54]} (15. Nd2 $14) 15... Bf8 {[%emt 0:01:44]} (15... Qc6 $11) 16. Rfd1 {[%emt 0:00:36]} (16. Nh4 $16) 16... Qc6 {[%emt 0:04:32]} 17. Bxc5 {[%emt 0:08:34]} Qxc5 {[%emt 0:00:25]} 18. Nd5 {[%emt 0:00:53]} Nxd5 {[%emt 0:00:47]} 19. exd5 {[%emt 0:00:03]} g6 {[%emt 0:04:16]} 20. Qe3 {[%emt 0:01:15]} Qxe3 {[%emt 0:00:58]} 21. fxe3 {[%emt 0:00:08]} Bg7 {[%emt 0:02:01]} 22. Rab1 {[%emt 0:00:08]} Rec8 {[%emt 0:04:54]} 23. Kf2 {[%emt 0:00:51]} b5 {[%emt 0:01:35]} 24. axb5 {[%emt 0:03:03]} Bxb5 {[%emt 0:00:12]} 25. Bxg6 {[%emt 0:00:18]} fxg6 {[%emt 0:00:53]} 26. cxb5 {[%emt 0:00:08]} Rcb8 {[%emt 0:03:52]} 27. e4 {[%emt 0:00:11]} Rxb5 {[%emt 0:00:34]} 28. Ke3 {[%emt 0:00:29]} Rab8 {[%emt 0:01:04]} 29. Nd2 {[%emt 0:00:17]} h5 {[%emt 0:01:24]} 30. Kd3 {[%emt 0:00:23]} 1/2-1/2

[Event "XIII Marques de Pombal 2022"]
[Site "Pombal"]
[Date "2022.10.07"]
[Round "4.8"]
[White "Gori, Andrea"]
[Black "Dias, Jose de Oliveira Gas"]
[Result "1/2-1/2"]
[ECO "B01"]
[WhiteElo "1982"]
[BlackElo "1397"]
[Annotator "TA"]
[PlyCount "118"]
[EventDate "2022.09.28"]
[EventType "swiss"]
[EventCountry "POR"]
[SourceTitle "playchess.com"]
[Source "ChessBase"]
[SourceQuality "1"]
[TimeControl "5400+30"]

{[%evp 9,118,36,55,57,39,50,48,12,62,65,79,78,63,45,86,72,59,59,108,93,107,95,109,99,147,150,146,127,196,136,235,133,167,163,480,170,147,150,193,186,192,190,195,191,281,278,277,264,315,321,285,282,361,358,344,164,188,185,231,226,224,226,233,237,214,193,151,145,233,36,39,38,32,40,65,38,108,60,141,155,533,68,25,-823,158,0,298,262,312,164,288,264,318,320,501,450,463,283,267,221,286,266,305,-77,0,0,0,-50,0,0,0]} 1. e4 {[%emt 0:00:04]} d5 {[%emt 0:00:05]} 2. exd5 {[%emt 0:00:28]} Nf6 {[%emt 0:00:13]} 3. Bb5+ {[%emt 0:02:17]} Nbd7 {[%emt 0:01:03]} 4. c4 {[%emt 0:01:34]} g6 {[%emt 0:00:24]} 5. d4 {[%emt 0:02:10][%cal Bd2d4,Bd4d5][%mdl 32]} Bg7 {[%emt 0:00:05]} 6. Nf3 {[%emt 0:00:49] B01: Scandinavian Defence.} O-O {[%emt 0:00:07]} 7. Bxd7 {[%emt 0:04:00]} Bxd7 {[%emt 0:01:12]} 8. O-O {[%emt 0:01:02] White is slightly better.} e6 {[%emt 0:01:12]} ({Black should try} 8... b5 $11) 9. dxe6 $14 {[%emt 0:04:59]} Bxe6 {[%emt 0:01:10]} 10. d5 {[%emt 0:00:49] [#]} Bf5 $146 {[%emt 0:05:49]} ({Predecessor:} 10... Bg4 11. Nc3 Bxf3 12. Qxf3 Nd7 13. Ne4 Ne5 14. Qb3 Qh4 15. Re1 Rfe8 16. Bg5 Qh5 {1-0 (33) Olsarova,K (2241)-Botur,M (2008) Czech Republic 2013}) 11. Nd4 {[%emt 0:05:43] Inhibits c6.} Bg4 {[%emt 0:00:40]} 12. f3 {[%emt 0:06:03]} Bd7 {[%emt 0:00:48]} 13. Nc3 {[%emt 0:01:07]} a6 {[%emt 0:02:13]} (13... Qe7 $14 {deserves consideration.}) 14. Bg5 $16 {[%emt 0:04:08]} h6 {[%emt 0:01:42]} 15. Bh4 {[%emt 0:00:34]} Qe7 {[%emt 0:01:05][%cal Ob7b5]} 16. Bf2 {[%emt 0:02:11]} Nh5 {[%emt 0:04:06]} (16... b5 $142) 17. Qd2 {[%emt 0:05:40]} Rfe8 {[%emt 0:01:22]} 18. Rad1 {[%emt 0:11:12]} Qf8 {[%emt 0:04:38]} (18... Qg5 $16 19. Qxg5 hxg5) 19. Ne4 {[%emt 0:02:08]} ({Better is} 19. Nb3 $1 $18) 19... Rad8 {[%emt 0:03:02] [#]} (19... f5 $16 {was worth a try.}) 20. Nb3 {[%emt 0:05:07]} (20. Nc6 $1 $18 {[%mdl 512]} Bxc6 21. Bc5) 20... Be5 {[%emt 0:01:50]} 21. Bd4 {[%emt 0:02:10]} Bf4 $2 {[%emt 0:03:30] [#]} (21... Bxd4+ {is tougher.} 22. Qxd4 (22. Nxd4 f5 $16) 22... f5) 22. Qc3 $2 {[%emt 0:05:32]} (22. Qxf4 $3 {[%mdl 512]} Nxf4 23. Nf6+ Kh8 24. Nxd7+ Qg7 25. Bxg7+ Kxg7 26. Ndc5) 22... f5 {[%emt 0:04:49]} 23. Nec5 {[%emt 0:02:40][%cal Be4c5,Bc5d3,Bd3e5,Be5c6][%mdl 32]} Bc8 {[%emt 0:00:49]} 24. g3 {[%emt 0:00:56]} Bd6 {[%emt 0:03:08]} 25. Nd3 {[%emt 0:07:48]} b6 {[%emt 0:04:48]} 26. Ne5 {[%emt 0:05:56]} Kh7 {[%emt 0:04:56]} (26... c5 $142 27. dxc6 (27. Nxg6 cxd4 28. Qxd4 Qf6 $17) 27... Bb4) 27. Nc6 $18 {[%emt 0:00:36]} Rd7 {[%emt 0:00:56]} 28. Rfe1 {[%emt 0:01:38]} Rf7 {[%emt 0:06:19]} 29. Rxe8 {[%emt 0:03:22]} Qxe8 30. Re1 {[%emt 0:00:10]} Qf8 {[%emt 0:00:36]} 31. c5 {[%emt 0:00:41]} bxc5 {[%emt 0:00:37]} 32. Bxc5 {[%emt 0:00:40]} (32. Nxc5 $142 {Qc4 is the strong threat.} Qg8 33. Ne6) 32... Bd7 {[%emt 0:01:08]} 33. Ne5 {[%emt 0:01:57] Pair of Knights!} Re7 {[%emt 0:01:52]} (33... Rg7 $142 34. Bxd6 Qxd6) 34. Bxd6 {[%emt 0:01:33]} cxd6 {[%emt 0:00:02]} 35. Nxd7 {[%emt 0:00:16]} Rxd7 {[%emt 0:01:23]} 36. Nd4 {[%emt 0:03:26]} Qb8 {[%emt 0:05:06]} 37. Nc6 {[%emt 0:00:57]} Qb6+ {[%emt 0:00:48]} 38. Kg2 {[%emt 0:00:13] Hoping for Re8.} Qc5 {[%emt 0:01:55]} (38... Qb5 $16 39. Ne7 (39. Re8 Ng7 $16) 39... Qc5) 39. Re6 $2 {[%emt 0:03:08]} (39. Re8 $18 {[%csl Ge8][%cal Rc3h8]} Qxc3 40. bxc3) 39... Qxd5 $14 {[%emt 0:04:58]} 40. Re8 {[%emt 0:00:39][%csl Ge8][%cal Rc3h8]} Ng7 {[%emt 0:00:50]} 41. Nb4 $40 {[%emt 0:00:43][%csl LRa6,LRd5][%mdl 128] White attacks.} Qf7 {[%emt 0:02:39]} 42. Ra8 {[%emt 0:00:37]} Rc7 {[%emt 0:01:15]} (42... Qe6 $14 43. Qd2 (43. Rxa6 $2 Qe2+ 44. Kg1 Qd1+ 45. Kg2 Re7 $19) 43... f4) 43. Qd4 {[%emt 0:00:27]} (43. Qd2 $16 {Black must now prevent Nd5.} Ra7 44. Rd8 (44. Rxa7 Qxa7 45. b3 Ne6 $16)) 43... Rc4 {[%emt 0:01:20]} (43... Qc4 $14 44. Qxc4 (44. Qxd6 $2 {is a self mate.} Qe2+ 45. Kh3 Qf1+ 46. Kh4 g5#) 44... Rxc4) 44. Qxd6 $16 {[%emt 0:00:51] And now b3 would win. White has more active pieces.} Rc7 $2 {[%emt 0:05:36]} (44... Qe6 $16 {is a better chance.} 45. Qxe6 Nxe6) 45. Rxa6 $2 {[%emt 0:00:53]} (45. Qd8 $18 {[%csl Ga8][%cal Rd8h8]} Ne8 46. Qxe8 Qxe8 47. Rxe8) 45... Rd7 $14 {[%emt 0:00:14]} 46. Qf4 {[%emt 0:00:22][%mdl 8192]} (46. Qc6 $11) 46... Nh5 $2 {[%emt 0:02:22]} (46... Qe7 $19 {( -> ...Qe2+)} 47. Qc4 Qe1) 47. Qc1 $2 {[%emt 0:00:50]} (47. Qe3 $16) 47... Rb7 $2 {[%emt 0:01:50][%mdl 8192]} (47... Qe7 $11 {and Black is okay.} 48. Qc4 Qe3) 48. a3 {[%emt 0:00:20]} Re7 {[%emt 0:00:27]} 49. Rc6 {[%emt 0:00:37]} (49. Qc5 $142) 49... Nf6 {[%emt 0:00:30]} (49... Re2+ {was called for.} 50. Kh3 (50. Kh1 Qb3 $16) 50... Qb3) 50. Rc2 {[%emt 0:01:32]} Qb3 {[%emt 0:00:59]} 51. Rc7 {[%emt 0:00:35]} Nd7 {[%emt 0:01:06]} (51... Rxc7 {was necessary.} 52. Qxc7+ Kg8) 52. Qd2 $18 {[%emt 0:00:33]} Qe6 {[%emt 0:00:46]} 53. Rc2 {[%emt 0:01:21]} Nf6 {[%emt 0:00:53]} 54. Nd3 {[%emt 0:00:44]} Rd7 {[%emt 0:00:57]} 55. Qc3 {[%emt 0:00:18]} Nd5 {[%emt 0:00:18]} 56. Qc6 {[%emt 0:00:34]} (56. Qe5 $18 Qxe5 57. Nxe5) 56... Rd6 {[%emt 0:00:42][%mdl 1024] Black has strong compensation.} 57. Qb7+ {[%emt 0:00:19]} Rd7 {[%emt 0:00:12]} 58. Qc6 {[%emt 0:00:42]} Rd6 {[%emt 0:00:34]} ({Black should play} 58... Ne3+ $15 59. Kf2 Qxc6 60. Rxc6 Rxd3) 59. Qb7+ $11 {[%emt 0:00:43]} Rd7 {[%emt 0:00:02] Weighted Error Value: White=0.62/Black=0.70} 1/2-1/2

[Event "XIII Marques de Pombal 2022"]
[Site "Pombal"]
[Date "2022.10.07"]
[Round "5.1"]
[White "Farias, David Nuno M E"]
[Black "Khamrakulov, Ibragim S."]
[Result "1/2-1/2"]
[ECO "B43"]
[WhiteElo "1863"]
[BlackElo "2421"]
[Annotator "TA"]
[PlyCount "66"]
[EventDate "2022.09.28"]
[EventType "swiss"]
[EventCountry "POR"]
[SourceTitle "playchess.com"]
[Source "ChessBase"]
[SourceQuality "1"]
[TimeControl "5400+30"]

{[%evp 26,66,52,17,17,15,16,4,14,0,7,1,5,6,7,10,45,0,0,0,34,33,29,21,27,21,28,21,27,32,23,4,4,8,8,11,52,45,55,8,10,0,8]} 1. e4 c5 {[%emt 0:00:36]} 2. Nf3 {[%emt 0:00:21]} e6 {[%emt 0:00:14]} 3. d4 {[%emt 0:00:02]} cxd4 {[%emt 0:00:05]} 4. Nxd4 {[%emt 0:00:01]} a6 {[%emt 0:00:03]} 5. Nc3 {[%emt 0:00:17]} Qc7 {[%emt 0:00:07]} 6. g3 {[%emt 0:00:41]} Nc6 {[%emt 0:00:49]} 7. Bg2 {[%emt 0:00:36]} Nf6 {[%emt 0:00:07]} 8. O-O {[%emt 0:00:15]} d6 {[%emt 0:00:54]} 9. Re1 {[%emt 0:01:30][%cal Bf1e1,Be1e5,Be5e3,Be3b3,Bb3b6,Bb6c6][%mdl 32]} Be7 {[%emt 0:00:22]} 10. Nxc6 {[%emt 0:16:06]} bxc6 {[%emt 0:00:52]} 11. e5 {[%emt 0:01:21]} dxe5 {[%emt 0:00:07]} 12. Rxe5 {[%emt 0:03:15]} O-O {[%emt 0:00:43]} 13. Bf4 Qb7 {[%emt 0:00:35]} 14. Re3 {[%emt 0:09:51]} Nd5 {[%emt 0:11:57] B80: Sicilian Scheveningen: 6 g3 and 6 Be3, including English Attack.} 15. Nxd5 {[%emt 0:04:22]} exd5 {[%emt 0:00:50]} 16. Rb3 {[%emt 0:08:54]} Qa7 {[%emt 0:05:14]} 17. Be3 {[%emt 0:02:57] [#]} Qc7 $146 {[%emt 0:08:12]} ({Predecessor:} 17... Bc5 18. Bxc5 Qxc5 19. Rc3 Qb5 20. Rxc6 Be6 21. Rc3 Qxb2 22. Rb3 Qe5 23. Rab1 Rfc8 {½-½ (92) Rossen,C (2174)-Jensen,V (2163) Aarhus 2017}) 18. c4 {[%emt 0:01:56]} dxc4 {[%emt 0:18:19]} 19. Rb6 c5 {[%emt 0:14:01]} 20. Rc6 {[%emt 0:12:11]} Qa5 {[%emt 0:00:45]} 21. Qe1 {[%emt 0:10:59]} (21. Be4 {seems wilder.} Bb7 22. Qh5 f5 23. Bxf5 Rxf5 24. Qxf5 Bxc6 25. Qe6+) 21... Qxe1+ {[%emt 0:01:48]} 22. Rxe1 {[%emt 0:00:02]} Bb7 {[%emt 0:01:01]} 23. Rc7 {[%emt 0:01:43]} Bxg2 {[%emt 0:00:28]} 24. Rxe7 {[%emt 0:01:25]} Bd5 {[%emt 0:16:12][%cal Oc4c3]} 25. Bxc5 c3 26. bxc3 Bxa2 27. R7e2 {[%csl LRa2,LRf8]} Bc4 28. Re4 Bd3 29. Bxf8 Bxe4 30. Bxg7 Bd5 31. Bd4 a5 32. Ra1 (32. Re5 $14 Bf3 33. c4) 32... a4 $11 33. Ra3 Bb3 {Weighted Error Value: White=0.12 (very precise) /Black=0.08 (flawless)} 1/2-1/2

[Event "XIII Marques de Pombal 2022"]
[Site "Pombal"]
[Date "2022.10.07"]
[Round "5.2"]
[White "Alves, Fernando Pereira Rib"]
[Black "Padeiro, Jose Joao Tato"]
[Result "0-1"]
[ECO "B00"]
[WhiteElo "1526"]
[BlackElo "2215"]
[Annotator "TA"]
[PlyCount "56"]
[EventDate "2022.09.28"]
[EventType "swiss"]
[EventCountry "POR"]
[SourceTitle "playchess.com"]
[Source "ChessBase"]
[SourceQuality "1"]
[TimeControl "5400+30"]

{[%evp 9,56,30,28,0,0,-72,-73,-92,-53,-65,-67,-70,-74,-97,-96,-100,-108,-155,-62,-87,-39,-385,-343,-331,-345,-354,-360,-365,-347,-453,-399,-410,-410,-468,-458,-493,-464,-457,-452,-489,-492,-470,-461,-547,-535,-707,-685,-1837,-1576]} 1. e4 {[%emt 0:00:32]} Nc6 {[%emt 0:00:20]} 2. d4 {[%emt 0:00:35][%cal Bd2d4,Bd4d5][%mdl 32]} d6 {[%emt 0:00:05]} 3. Be3 {[%emt 0:04:54]} e5 {[%emt 0:00:16]} 4. d5 {[%emt 0:02:01]} Nce7 {[%emt 0:00:11]} 5. Nc3 {[%emt 0:07:11]} Nf6 {[%emt 0:00:24]} 6. Be2 {[%emt 0:04:47] [#] B00: Queen's Fianchetto Defence, Nimzowitsch Defence.} c6 $146 {[%emt 0:01:35]} ({Predecessor:} 6... g6 7. Qd2 h5 8. O-O-O Bg7 9. Kb1 a6 10. f3 h4 11. Bg5 Nd7 12. Nh3 f6 {1-0 (82) Priyadharshan,K (2527)-Drozdowski,K (2511) Chess.com INT 2017}) 7. Kf1 {[%emt 0:15:57]} (7. Bg5 $11 {remains equal.}) 7... cxd5 $17 {[%emt 0:00:56]} 8. exd5 {[%emt 0:00:29] Black is better.} Nf5 {[%emt 0:01:09]} 9. Bg5 {[%emt 0:05:40]} Be7 {[%emt 0:00:35][%cal Of6d5]} 10. Bxf6 {[%emt 0:01:50]} Bxf6 {[%emt 0:00:05]} 11. Ne4 {[%emt 0:00:31]} O-O {[%emt 0:00:47]} 12. Nf3 {[%emt 0:00:55]} Be7 {[%emt 0:03:35]} 13. Rg1 {[%emt 0:14:39]} (13. c4 $142) 13... g6 {[%emt 0:03:21]} ({Better is} 13... Nh6 $17 14. c4 f5) 14. Qd2 $15 {[%emt 0:08:46][%cal Oh2h4]} ({Much worse is} 14. g4 Nh4 15. Nfd2 Kh8 $17) 14... Ng7 {[%emt 0:02:12]} (14... Nh4 $17 {Threatens to win with ...f5.} 15. Qh6 Nxf3 16. gxf3 Bf5) 15. Nxe5 $2 {[%emt 0:09:02][%mdl 8192] [#] This move loses the game for White.} dxe5 {[%emt 0:00:58]} 16. d6 {[%emt 0:00:21]} Bh4 {[%emt 0:00:49]} 17. g3 {[%emt 0:00:42]} Bh3+ {[%emt 0:00:11]} 18. Ke1 {[%emt 0:00:12]} Bf6 {[%emt 0:01:41]} 19. g4 {[%emt 0:03:14]} Ne6 {[%emt 0:01:35]} 20. g5 {[%emt 0:09:49]} Bg7 {[%emt 0:01:06]} 21. Rg3 {[%emt 0:01:39]} Bf5 {[%emt 0:00:14] Black is clearly winning.} 22. f3 {[%emt 0:03:04]} Bxe4 {[%emt 0:03:48]} 23. fxe4 {[%emt 0:00:12]} Qb6 {[%emt 0:01:02]} 24. c3 {[%emt 0:00:31]} Rad8 {[%emt 0:00:17]} 25. Rd1 {[%emt 0:00:08]} Rd7 {[%emt 0:02:24]} 26. Bf1 {[%emt 0:03:23]} Rfd8 {[%emt 0:00:21][%cal Rd7d6]} 27. Rd3 {[%emt 0:00:18]} Nf4 {[%emt 0:00:16]} 28. Bh3 {[%emt 0:00:31]} Nxd3+ {[%emt 0:00:52] Weighted Error Value: White=0.88/Black=0.13 (very precise)} 0-1

[Event "XIII Marques de Pombal 2022"]
[Site "Pombal"]
[Date "2022.10.07"]
[Round "5.3"]
[White "Povshednyi, Ivan"]
[Black "Almeida, Joao Pedro Dias"]
[Result "1/2-1/2"]
[ECO "D79"]
[WhiteElo "2140"]
[BlackElo "1901"]
[Annotator "TA"]
[PlyCount "89"]
[EventDate "2022.09.28"]
[EventType "swiss"]
[EventCountry "POR"]
[SourceTitle "playchess.com"]
[Source "ChessBase"]
[SourceQuality "1"]
[TimeControl "5400+30"]

{[%evp 21,89,16,16,16,18,19,22,30,16,18,33,26,48,48,65,55,156,154,139,153,132,63,158,83,85,29,29,14,69,47,46,47,43,40,104,7,4,7,10,8,21,12,31,31,33,31,33,31,33,31,38,31,25,15,18,29,44,29,20,0,0,0,8,8,8,0,0,0,0,0]} 1. Nf3 {[%emt 0:00:04]} d5 {[%emt 0:00:04]} 2. g3 {[%emt 0:00:11]} Nf6 {[%emt 0:00:05]} 3. Bg2 {[%emt 0:00:09]} g6 {[%emt 0:01:50]} 4. d4 {[%emt 0:00:16]} Bg7 {[%emt 0:00:05]} 5. c4 {[%emt 0:00:18]} c6 {[%emt 0:00:22]} 6. cxd5 {[%emt 0:00:23]} cxd5 {[%emt 0:00:05]} 7. O-O {[%emt 0:00:45]} O-O {[%emt 0:00:03]} 8. Ne5 {[%emt 0:01:02]} Nc6 {[%emt 0:01:40]} 9. Nc3 {[%emt 0:00:10]} Bf5 {[%emt 0:06:42]} 10. Nxc6 {[%emt 0:00:45]} bxc6 {[%emt 0:00:09]} 11. Na4 {[%emt 0:00:16]} Nd7 {[%emt 0:01:51]} 12. Bf4 {[%emt 0:03:40] D79: Fianchetto Grünfeld: Symmetrical Variation (6 0-0 c6 7 cxd5 cxd5).} e5 {[%emt 0:00:20]} 13. dxe5 {[%emt 0:00:26]} Nxe5 {[%emt 0:00:52]} 14. Rc1 {[%emt 0:03:48]} Rc8 {[%emt 0:00:49]} 15. b3 {[%emt 0:00:59]} Qe7 {[%emt 0:01:52]} 16. Qd2 {[%emt 0:02:13] [#]} Rfd8 $146 {[%emt 0:04:43]} ({Predecessor:} 16... Rfe8 17. Rfe1 Nd7 18. Be3 Nf6 19. Bc5 Qd7 20. Qa5 Rc7 21. Bd4 Bh3 22. Bxh3 Qxh3 23. Bxf6 {1-0 (23) Azaladze,S (2482)-Benidze,D (2479) Teheran 2014}) 17. Bg5 {[%emt 0:13:15]} f6 {[%emt 0:00:40]} 18. Be3 {[%emt 0:01:30]} d4 {[%emt 0:11:44]} (18... Nf7 $14) 19. Bxd4 $16 {[%emt 0:36:16]} Nd3 {[%emt 0:00:15]} 20. exd3 {[%emt 0:00:59]} Rxd4 {[%emt 0:00:08]} 21. Rfe1 {[%emt 0:04:05]} (21. Nc5 $16) 21... Qd6 {[%emt 0:02:09]} (21... Rxd3 $14 22. Qxd3 Qxe1+ 23. Rxe1 Bxd3) 22. Qa5 {[%emt 0:00:45]} (22. Nc5 $142) 22... Bh6 {[%emt 0:04:40]} 23. Rc4 {[%emt 0:16:42]} (23. Rc5 $16) 23... Rxd3 $11 {[%emt 0:01:23]} (23... Bxd3 $2 24. Rxd4 Qxd4 25. Bh3 $18) 24. Qc5 {[%emt 0:04:09]} Qd8 {[%emt 0:06:25]} ({Better is} 24... Rd8 $11) 25. Be4 {[%emt 0:05:14] White has more active pieces.} ({Reject} 25. Bxc6 Bf8 26. Qxa7 Rd1 $11) (25. Qxa7 $5 {[%cal Rh2h4]} Rd1 26. Rf1 $14) 25... Rd1 {[%emt 0:01:09]} 26. Rxd1 {[%emt 0:00:18]} Qxd1+ {[%emt 0:00:09]} 27. Kg2 {[%emt 0:00:01]} Bf8 {[%emt 0:04:55]} ({Black should play} 27... Bxe4+ $14 28. Rxe4 Qd5) 28. Qd4 {[%emt 0:00:41]} (28. Qxa7 $16 {Black must now prevent Bxf5.} Be6 29. Bf3 (29. Rxc6 $2 Bd5 $19)) 28... Qxd4 29. Rxd4 {[%emt 0:00:14] With the idea Bxf5.} Be6 {[%emt 0:01:52]} 30. Rd2 {[%emt 0:00:47]} Be7 {[%emt 0:00:48]} 31. Rc2 {[%emt 0:00:50]} Kf7 {[%emt 0:00:07]} 32. Rxc6 {[%emt 0:00:56]} Rxc6 {[%emt 0:00:45]} 33. Bxc6 $14 {[%emt 0:00:01][%mdl 4096] Endgame KBB-KBN} Bb4 {[%emt 0:00:01]} 34. Nb2 {[%emt 0:00:34]} Ke7 {[%emt 0:00:42]} 35. Kf3 {[%emt 0:00:27]} Kd6 {[%emt 0:00:05]} 36. Bb5 {[%emt 0:00:28]} (36. Nd3 $5 {[%cal Rd3b4]}) 36... Kc5 {[%emt 0:02:27]} 37. Bc4 {[%emt 0:00:10]} Bxc4 {[%emt 0:02:38]} 38. Nxc4 $11 {[%emt 0:00:02] KB-KN} Kd4 {[%emt 0:00:12]} 39. Ke2 {[%emt 0:00:22]} Kc3 {[%emt 0:00:22]} 40. Ne3 {[%emt 0:01:49] The position is equal.} Kb2 {[%emt 0:00:36]} 41. Nd5 {[%emt 0:01:22][%csl LRb4,LRf6]} Bd6 {[%emt 0:00:12]} 42. Kd3 {[%emt 0:01:13] [#] Threatens to win with Kc4.} (42. Nxf6 Kxa2 43. Nxh7 Kxb3 $17) 42... Kxa2 {[%emt 0:02:37]} 43. Kc2 {[%emt 0:00:31]} (43. Nxf6 Kxb3 44. Ng4 a5 $17) 43... f5 {[%emt 0:04:37]} 44. Nc3+ {[%emt 0:00:35]} Ka1 {[%emt 0:00:07]} 45. Nb5 {[%emt 0:01:20] Weighted Error Value: White=0.17 (very precise) /Black=0.17 (very precise)} 1/2-1/2

[Event "XIII Marques de Pombal 2022"]
[Site "Pombal"]
[Date "2022.10.07"]
[Round "5.4"]
[White "Figueiredo, Mario Jose da Rocha"]
[Black "Ferreira, Hugo Miguel Da Costa"]
[Result "0-1"]
[ECO "E11"]
[WhiteElo "1842"]
[BlackElo "2101"]
[Annotator "TA"]
[PlyCount "68"]
[EventDate "2022.09.28"]
[EventType "swiss"]
[EventCountry "POR"]
[SourceTitle "playchess.com"]
[Source "ChessBase"]
[SourceQuality "1"]
[TimeControl "5400+30"]

{[%evp 16,68,37,30,45,-3,7,8,25,12,7,7,12,5,19,20,24,18,54,23,8,27,66,41,38,-7,-7,-83,-85,-101,-129,-1105,-1119,-999,-747,-747,-747,-735,-735,-682,-689,-676,-667,-916,-916,-904,-903,-893,-887,-887,-872,-871,-804,-779,-749]} 1. d4 {[%emt 0:00:08]} Nf6 {[%emt 0:00:14]} 2. Nf3 {[%emt 0:00:07]} e6 {[%emt 0:00:08]} 3. c4 {[%emt 0:00:10]} Bb4+ {[%emt 0:00:08]} 4. Nbd2 {[%emt 0:00:35]} O-O {[%emt 0:02:08]} 5. a3 {[%emt 0:01:51]} Bxd2+ {[%emt 0:03:44]} 6. Nxd2 {[%emt 0:00:25]} d5 {[%emt 0:01:26]} 7. e3 {[%emt 0:00:43]} b6 {[%emt 0:01:25]} 8. Bd3 {[%emt 0:04:47]} Bb7 {[%emt 0:02:57]} 9. O-O {[%emt 0:01:15]} Nbd7 {[%emt 0:01:11] E14: Queen's Indian: Classical Variation (4 e3).} 10. Nf3 {[%emt 0:07:54] [#]} (10. b4 $14) 10... c5 $146 {[%emt 0:07:02]} ({Predecessor:} 10... Qe7 11. cxd5 exd5 12. b3 Ne4 13. Bb2 f5 14. Rc1 c6 15. Ne5 Nxe5 16. dxe5 c5 17. Qc2 {½-½ (49) Dudas,P (2257)-Dobai,S (2179) Hungary 2013}) 11. b3 {[%emt 0:03:51]} cxd4 {[%emt 0:01:16] The position is equal.} 12. exd4 {[%emt 0:00:33]} Rc8 {[%emt 0:03:00]} 13. Bb2 {[%emt 0:02:46]} Qc7 {[%emt 0:00:49]} 14. Re1 {[%emt 0:12:25]} (14. Rc1 {is more complex.} Qf4 15. Nd2 Ng4 16. g3) 14... Rfd8 {[%emt 0:00:56][%cal Rd5c4]} 15. Qe2 {[%emt 0:01:33]} dxc4 {[%emt 0:00:41]} 16. bxc4 {[%emt 0:02:29]} Qc6 {[%emt 0:08:57]} 17. Qf1 {[%emt 0:05:59]} (17. a4 $5 {[%cal Ra4a5]}) 17... Qd6 {[%emt 0:01:26]} 18. Ne5 {[%emt 0:07:21]} Nf8 {[%emt 0:17:31]} 19. Rad1 {[%emt 0:01:31]} Nh5 {[%emt 0:03:48]} 20. f4 {[%emt 0:03:17]} f6 {[%emt 0:06:17]} 21. g4 {[%emt 0:06:59]} (21. Be2 $11) 21... fxe5 $17 {[%emt 0:03:45]} 22. fxe5 {[%emt 0:01:20]} Qe7 {[%emt 0:00:58]} ({But not} 22... Qc6 23. Be4 Qc7 24. Bxb7 (24. gxh5 Bxe4 25. Rxe4 Qxc4 $11) 24... Qxb7 25. gxh5 $16) 23. gxh5 {[%emt 0:08:18][%mdl 8192] This costs White the game.} (23. Be4 $17 Bxe4 24. Rxe4) 23... Qg5+ $19 {[%emt 0:00:32] Black is clearly winning.} 24. Kf2 {[%emt 0:00:10]} Rc7 {[%emt 0:06:37] [#] And now ...Rf7+ would win.} 25. Qh3 {[%emt 0:04:15]} Rf7+ {[%emt 0:00:15]} 26. Ke2 {[%emt 0:00:07]} Bf3+ {[%emt 0:03:37]} 27. Qxf3 {[%emt 0:00:10]} Rxf3 {[%emt 0:00:06]} 28. Kxf3 {[%emt 0:00:04] [#]} Ng6 $1 {[%emt 0:04:00][%mdl 576] ( -> ...Rf8+). Clearance} 29. Bxg6 {[%emt 0:05:08]} (29. Ke2 Qg2+) 29... Rf8+ {[%emt 0:00:26]} 30. Ke2 {[%emt 0:01:32]} Qg2+ {[%emt 0:00:31][%mdl 64] Skewer, Double Attack} 31. Kd3 {[%emt 0:00:44]} Qxb2 {[%emt 0:01:21]} 32. Rf1 {[%emt 0:02:50] Inhibits Rf3+.} Rxf1 {[%emt 0:01:28]} 33. Rxf1 {[%emt 0:00:27]} hxg6 {[%emt 0:00:09]} 34. hxg6 {[%emt 0:00:18]} Qb3+ {[%emt 0:00:13] Weighted Error Value: White=0.60/Black=0.25 (precise)} 0-1